Cogmind - Beta 15 @@@ ROGUE MODE // 2025.05.07 @ 00:01:43 Player: harambe Result: Escaped! Performance ------------- Evolutions (9) 4500 Regions Visited (13) 2600 Robots Destroyed (11) 55 Value Destroyed (454) 454 Prototype IDs (25) 500 Alien Tech Used (0) 0 Bonus (7430) 7430 TOTAL SCORE: 15539 Bonus ------- Entered DSFs 500 Aligned with FarCom 300 Win 3000 Win Speed 3630 Cogmind --------- Core Integrity 1600/1600 Matter 250/300 Energy 148/150 System Corruption 1% Temperature Cool (6) Movement Flying (37) Location To Epsilon Eridani Parts ------- > --- POWER (3) -------- Micro Antimatter Reactor > --- PROPULSION (10) -- Improved Antigrav System Impulse Thruster Impulse Thruster Array Impulse Thruster Array > --- UTILITY (10) ----- Medium Storage Unit Advanced Terrain Scan Processor Advanced Trap Extractor (0/8) Advanced Drone Bay (0/2) > --- WEAPON (2) ------- (None) > --- INVENTORY (10) --- Light Quantum Reactor Thunder Leg Centrium Leg Centrium Leg Advanced Trap Extractor (0/8) Matter Neutralizer Enhanced Nova Cannon Heavy Shock Bomb Launcher Power Sword Peak State ------------ > --- POWER ------------ Light Ion Engine Light Particle Reactor > --- PROPULSION ------- Impulse Thruster Array Impulse Thruster Array Impulse Thruster Array Impulse Thruster Array Impulse Thruster Array > --- UTILITY ---------- Medium Storage Unit Advanced Terrain Scan Processor Layered Heavy Armor Plating Advanced Trap Extractor > --- WEAPON ----------- Matter Neutralizer > --- INVENTORY -------- Micro Antimatter Reactor Thunder Leg Centrium Leg Centrium Leg Impulse Thruster Advanced Trap Extractor Enhanced Nova Cannon Heavy Shock Bomb Launcher Power Sword [Rating: 125] Favorites ----------- Power Ion Engine Engine Ion Engine Power Core Light Nuclear Core Reactor Light Particle Reactor Propulsion Wheel Treads Light Treads Leg Aluminum Leg Wheel Wheel Hover Unit Gravmag Array Flight Unit Impulse Thruster Array Utility Medium Storage Unit Device Cloak of Protection Storage Medium Storage Unit Processor Advanced Terrain Scan Processor Hackware Hacking Suite Protection Hardened Heavy Armor Plating Weapon Assault Rifle Energy Gun Medium Laser Energy Cannon Matter Neutralizer Ballistic Gun Assault Rifle Ballistic Cannon Gauss Cannon Launcher Missile Launcher Slashing Weapon Power Sword Build | -11 -10 -10 -10 -9 -8 -7 -6 -5 -4 -4 -3 -2 -1 ------- Run | Yrd Mat Min Exi Min Mat Fac Fac Fac Fac DSF Res Res Acc Slots Evolved 18 | . . . . . 4 2 2 2 2 . 2 2 2 Power 2 | . . . . . 1 . . . . . . . 1 Propulsion 8 | . . . . . 2 . 2 1 1 . . 2 . Utility 8 | . . . . . 1 2 . 1 1 . 2 . 1 Weapon . | . . . . . . . . . . . . . . Parts Attached 61 | . 2 2 1 1 12 4 8 5 2 6 7 9 2 Power 10 | . . . . . 3 . 2 1 . . 3 1 . Engine 3 | . . . . . 1 . 1 . . . 1 . . Core 3 | . . . . . 2 . 1 . . . . . . Reactor 4 | . . . . . . . . 1 . . 2 1 . Propulsion 24 | . 2 . . 1 3 3 4 . . 4 1 5 1 Treads 3 | . 1 . . . 1 1 . . . . . . . Leg . | . . . . . . . . . . . . . . Wheel 5 | . 1 . . 1 2 1 . . . . . . . Hover 3 | . . . . . . . 2 . . . . . 1 Flight 13 | . . . . . . 1 2 . . 4 1 5 . Utility 18 | . . 1 1 . 2 1 1 3 2 2 2 2 1 Device 5 | . . . 1 . . 1 . . 1 . . 1 1 Storage 5 | . . 1 . . . . 1 . 1 1 . 1 . Processor 3 | . . . . . . . . 2 . . 1 . . Hackware 2 | . . . . . 2 . . . . . . . . Protection 3 | . . . . . . . . 1 . 1 1 . . Artifact . | . . . . . . . . . . . . . . Weapon 9 | . . 1 . . 4 . 1 1 . . 1 1 . Energy Gun 4 | . . 1 . . 3 . . . . . . . . Energy Cannon 1 | . . . . . . . . . . . 1 . . Ballistic Gun . | . . . . . . . . . . . . . . Ballistic Cannon 2 | . . . . . . . 1 1 . . . . . Launcher 1 | . . . . . 1 . . . . . . . . Special Weapon . | . . . . . . . . . . . . . . Impact Weapon . | . . . . . . . . . . . . . . Slashing Weapon 1 | . . . . . . . . . . . . 1 . Piercing Weapon . | . . . . . . . . . . . . . . Special Melee Weapon . | . . . . . . . . . . . . . . Unidentified Prototypes 2 | . . . . . . 1 . 1 . . . . . Parts Lost 29 | . . . . . 2 . 13 1 . 2 3 8 . Power 7 | . . . . . . . 4 . . . 1 2 . Propulsion 16 | . . . . . 2 . 6 . . 2 1 5 . Utility 4 | . . . . . . . 1 1 . . 1 1 . Weapon 2 | . . . . . . . 2 . . . . . . Highest Loss Streak 13 | . . . . . 1 . 13 1 . 3 3 5 . To Critical Strikes . | . . . . . . . . . . . . . . Average Backups 7 | 6 8 7 8 9 8 8 8 7 9 5 3 6 8 Power . | 1 1 1 1 1 . 1 . . . . . . . Propulsion 2 | 4 6 4 4 4 2 2 . . . . 1 2 3 Utility 2 | . . 1 1 2 3 3 4 3 4 1 . 1 1 Weapon 2 | 1 1 1 2 2 1 2 2 3 5 3 1 2 3 Tool/Special . | . . . . . . . . . . . . . . Unused Backups 31 | . . 4 1 1 7 1 3 . . 3 4 . 7 Power 3 | . . . . . 2 . . . . . . . 1 Propulsion 9 | . . 2 . 1 . . . . . . 3 . 3 Utility 8 | . . . 1 . 2 1 3 . . . . . 1 Weapon 11 | . . 2 . . 3 . . . . 3 1 . 2 Tool/Special . | . . . . . . . . . . . . . . Average Slot Usage (%) 73 | . 85 90 100 100 97 91 55 39 36 29 35 45 34 Engine 6 | . 14 14 14 14 8 . . . . . . 2 . Core 2 | . . . . . 9 15 6 . . . . . . Reactor 1 | . . . . . . . . 1 5 2 4 3 4 Treads 7 | . 4 14 14 14 9 7 3 . . . . . . Wheel 9 | . 4 14 14 14 25 15 6 . . . . . . Hover 1 | . . . . . . . 3 11 10 2 . . 1 Flight 5 | . . . . . . 6 10 . . 9 19 19 12 Device 2 | . . . 2 14 2 7 3 . . 2 . 3 8 Storage 11 | . 14 19 25 14 9 7 5 5 5 5 . 3 4 Processor 1 | . . . . . . . . 8 10 4 2 4 4 Hackware 3 | . . . . . 15 15 7 . . . . . . Protection 1 | . . . . . . . . 4 . 2 3 2 . Energy Gun 8 | . 14 14 14 14 12 15 5 . . . . . . Ballistic Gun 6 | . 14 14 14 14 5 . . . . . . . . Peak Build Rating 125 | 6 6 8 15 15 28 41 45 49 47 75 102 125 83 Average Rating 36 | 6 6 7 9 15 23 38 31 42 43 46 92 105 79 On Entrance 34 | 6 6 6 8 15 15 27 41 25 41 47 75 98 69 Naked Turns 16 | . . . . . . . 5 . . 11 . . . Heaviest Build 61 | 13 13 24 27 27 32 32 39 49 32 35 58 61 32 Greatest Support 80 | 20 20 10 10 16 36 22 40 40 40 64 64 80 39 Greatest Overweight (x) 3 | . 1 2 2 2 1 1 3 1 . 1 1 1 . Average Overweight (x) . | . . 1 2 1 . 1 . . . . . . . Largest Inventory Capacity 15 | 8 8 10 10 10 10 10 10 10 10 15 5 10 10 Average Capacity 9 | 8 8 8 10 10 10 10 9 10 10 7 5 9 10 Most Carried 10 | 8 8 10 10 10 10 10 10 10 10 10 5 10 9 Average Carried 8 | 6 8 8 9 10 9 8 8 8 9 6 4 7 8 Final Capacity 10 | 8 8 10 10 10 10 10 10 10 10 5 5 10 10 Final Carried 10 | 8 8 10 10 10 10 10 10 10 8 5 5 9 9 Class Distribution -------------------- 78% | Mutant 19% | Hacker-Mutant Dominant Class ---------------- Mutant | -10/Materials Mutant | -10/Mines Mutant | -10/Exiles Mutant | -9/Mines Hacker-Mutant | -8/Materials Hacker-Mutant | -7/Factory Mutant | -6/Factory Mutant | -5/Factory Mutant | -4/Factory Mutant | -4/DSF Mutant | -3/Research Mutant | -2/Research Mutant | -1/Access Resources | -11 -10 -10 -10 -9 -8 -7 -6 -5 -4 -4 -3 -2 -1 ----------- Run | Yrd Mat Min Exi Min Mat Fac Fac Fac Fac DSF Res Res Acc Matter Collected 832 | 227 . 76 . 32 144 101 . 60 . 2 137 53 . Remotely . | . . . . . . . . . . . . . . Salvage Created 497 | 67 . 86 . 15 214 42 . . . . . 73 . Parts 24 | 4 . 4 . . 7 1 . . . . . 8 . Haulers Intercepted . | . . . . . . . . . . . . . . Recyclers Shooed 2 | . . 2 . . . . . . . . . . . Parts Field Recycled . | . . . . . . . . . . . . . . Retrieved Matter . | . . . . . . . . . . . . . . Parts Self-Destructed . | . . . . . . . . . . . . . . Prevented . | . . . . . . . . . . . . . . Kills | -11 -10 -10 -10 -9 -8 -7 -6 -5 -4 -4 -3 -2 -1 ------- Run | Yrd Mat Min Exi Min Mat Fac Fac Fac Fac DSF Res Res Acc Combat Hostiles Destroyed 10 | . . 2 . 1 4 1 . . . . . 2 . Melee 2 | . . . . . . . . . . . . 2 . Guns 8 | . . 2 . 1 4 1 . . . . . . . Classes Destroyed 7 | 2 . 1 . 1 1 1 . . . . . 1 . Tunneler 1 | 1 . . . . . . . . . . . . . Recycler 1 | 1 . . . . . . . . . . . . . Cutter 2 | . . . . . . . . . . . . 2 . Grunt 5 | . . 2 . . 3 . . . . . . . . Sentry 1 | . . . . . 1 . . . . . . . . Programmer 1 | . . . . . . 1 . . . . . . . Assembled 1 | . . . . 1 . . . . . . . . . Best Kill Streak 3 | 1 . 2 . 1 3 1 . . . . . 2 . Combat Bots Only 3 | . . 2 . 1 3 1 . . . . . 2 . Max Kills in Single Turn 1 | 1 . 1 . 1 1 1 . . . . . 1 . Gunslinging . | . . . . . . . . . . . . . . Exploded . | . . . . . . . . . . . . . . Melee 1 | . . . . . . . . . . . . 1 . Uniques/NPCs Destroyed . | . . . . . . . . . . . . . . Combat | -11 -10 -10 -10 -9 -8 -7 -6 -5 -4 -4 -3 -2 -1 -------- Run | Yrd Mat Min Exi Min Mat Fac Fac Fac Fac DSF Res Res Acc Hostile Shots Fired 654 | . . 16 . 23 35 10 171 79 . 57 118 135 10 Missed 261 | . . 2 . 5 7 5 53 15 . 30 63 73 8 Hits 393 | . . 14 . 18 28 5 118 64 . 27 55 62 2 Melee 9 | . . . . 1 . . . . . . . 8 . Projectile 384 | . . 14 . 17 28 5 118 64 . 27 55 54 2 AOE 2 | . . . . . . . . . . . . 2 . Critical Strikes 13 | . . . . . 1 . 2 . . 1 3 6 . Part Disruptions 1 | . . . . . . 1 . . . . . . . Damage Taken 7371 | . . 194 . 244 440 75 1633 1091 . 546 1495 1539 114 Core 1272 | . . 45 . 42 114 . 278 60 . 232 106 395 . Absorbed by Shields . | . . . . . . . . . . . . . . Regen/Repaired (Parts) 26 | . . . . . . 26 . . . . . . . Core Remaining (%) 84 | 100 . . . 65 79 100 67 94 . 79 91 72 100 Volleys Fired 53 | 9 . 12 . 4 15 7 1 1 . . 4 . . Largest 2 | 2 . 2 . 2 2 2 2 1 . . 1 . . Hottest 138 | 60 . 60 . 70 89 138 109 40 . . 105 . . Shots Fired 93 | 18 . 24 . 8 28 8 2 1 . . 4 . . Gun 85 | 18 . 24 . 8 26 8 1 . . . . . . Cannon 6 | . . . . . . . 1 1 . . 4 . . Launcher 2 | . . . . . 2 . . . . . . . . Special . | . . . . . . . . . . . . . . Kinetic 40 | 9 . 12 . 4 13 . 1 1 . . . . . Thermal 51 | 9 . 12 . 4 13 8 1 . . . 4 . . Explosive 2 | . . . . . 2 . . . . . . . . Electromagnetic . | . . . . . . . . . . . . . . Robot Hit Streak 11 | 3 . 9 . 4 11 4 . . . . . . . Robot Miss Streak 3 | 1 . 3 . 2 3 1 2 3 . . . . . Penetration Max . | . . . . . . . . . . . . . . Secondary Targets . | . . . . . . . . . . . . . . Shots Hit Robots 64 | 12 . 17 . 4 22 6 . . . . . 3 . Core Hits 23 | 3 . 5 . 2 8 2 . . . . . 3 . Critical Kills . | . . . . . . . . . . . . . . Critical Parts Destroyed . | . . . . . . . . . . . . . . Critical Strikes 1 | . . . . . 1 . . . . . . . . Burn 1 | . . . . . 1 . . . . . . . . Melee Attacks 3 | . . . . . . . . . . . . 3 . Impact . | . . . . . . . . . . . . . . Slashing 3 | . . . . . . . . . . . . 3 . Piercing . | . . . . . . . . . . . . . . Sneak Attacks . | . . . . . . . . . . . . . . Combat Hostiles . | . . . . . . . . . . . . . . Follow-up Attacks . | . . . . . . . . . . . . . . Damage Inflicted 973 | 137 . 203 . 49 323 145 1 . . . . 115 . Guns 857 | 137 . 203 . 49 323 145 . . . . . . . Cannons . | . . . . . . . . . . . . . . Explosions . | . . . . . . . . . . . . . . Melee 115 | . . . . . . . . . . . . 115 . Ramming 1 | . . . . . . . 1 . . . . . . Kinetic 352 | 63 . 114 . 24 151 . . . . . . . . Thermal 505 | 74 . 89 . 25 172 145 . . . . . . . Explosive . | . . . . . . . . . . . . . . Electromagnetic . | . . . . . . . . . . . . . . Impact . | . . . . . . . . . . . . . . Slashing 115 | . . . . . . . . . . . . 115 . Piercing . | . . . . . . . . . . . . . . Highest Corruption 6 | . . . . . . 1 1 1 . . 6 . 1 Average Corruption 2 | . . . . . . 1 1 1 . . 3 . 1 Corruption Purged . | . . . . . . . . . . . . . . Corruption Blocked . | . . . . . . . . . . . . . . Effects 3 | . . . . . . . . . . . 3 . . Message Errors 1 | . . . . . . . . . . . 1 . . Matter Fused 1 | . . . . . . . . . . . 1 . . Energy Discharges 1 | . . . . . . . . . . . 1 . . Overload Shots . | . . . . . . . . . . . . . . Overflow Damage 21 | . . . . . 21 . . . . . . . . Projectiles . | . . . . . . . . . . . . . . Explosions 21 | . . . . . 21 . . . . . . . . Melee . | . . . . . . . . . . . . . . Knockbacks . | . . . . . . . . . . . . . . Impact . | . . . . . . . . . . . . . . Kinetic . | . . . . . . . . . . . . . . Secondary . | . . . . . . . . . . . . . . Self-Inflicted Damage 33 | . . . . . 33 . . . . . . . . Shots 1 | . . . . . 1 . . . . . . . . Rammed 1 | . . . . . . . 1 . . . . . . Targets Rammed 1 | . . . . . . . 1 . . . . . . Kicked . | . . . . . . . . . . . . . . Crushed . | . . . . . . . . . . . . . . Highest Temperature 449 | . . 81 . 27 321 246 106 . . . 449 300 . Average Temperature 145 | . . 54 . 12 116 132 67 . . . 203 121 . Received Heat Transfer 768 | . . 108 . . 216 . 222 72 . . 87 63 . Effects 12 | . . . . . . . . . . . 10 2 . Shutdowns 5 | . . . . . . . . . . . 5 . . Energy Bleed 3 | . . . . . . . . . . . 2 1 . Interference 4 | . . . . . . . . . . . 3 1 . Siege Activations . | . . . . . . . . . . . . . . Martial Activations . | . . . . . . . . . . . . . . Shielding Activations . | . . . . . . . . . . . . . . Robots Disrupted . | . . . . . . . . . . . . . . Combat Hostiles . | . . . . . . . . . . . . . . Robots Corrupted . | . . . . . . . . . . . . . . Combat Hostiles . | . . . . . . . . . . . . . . Parts Fried . | . . . . . . . . . . . . . . Impact Corruptions . | . . . . . . . . . . . . . . Robots Melted . | . . . . . . . . . . . . . . Combat Hostiles . | . . . . . . . . . . . . . . Parts Melted 7 | . . . . . 2 5 . . . . . . . Heat Transferred 1115 | 175 . 200 . 74 444 222 . . . . . . . Parts Sabotaged . | . . . . . . . . . . . . . . Parts Stolen . | . . . . . . . . . . . . . . Parts Stripped . | . . . . . . . . . . . . . . Power Chain Reactions . | . . . . . . . . . . . . . . Alert | -11 -10 -10 -10 -9 -8 -7 -6 -5 -4 -4 -3 -2 -1 ------- Run | Yrd Mat Min Exi Min Mat Fac Fac Fac Fac DSF Res Res Acc Maximum Alert Level 1 | . . . . . . . . . . . 1 1 1 Low Security (%) 93 | 100 100 100 . 100 100 100 100 100 100 100 71 73 87 Level 1 6 | . . . . . . . . . . . 28 26 12 Level 2 . | . . . . . . . . . . . . . . Level 3 . | . . . . . . . . . . . . . . Level 4 . | . . . . . . . . . . . . . . Level 5 . | . . . . . . . . . . . . . . High Security . | . . . . . . . . . . . . . . Max Security . | . . . . . . . . . . . . . . Peak Influence 358 | 5 . 40 . . 55 30 125 56 . . 358 320 238 Initial 195 | . . . . . . 7 4 56 . . . 195 192 Average 48 | 2 . 5 . . 15 4 24 14 . . 115 192 176 Influence Increases 1611 | 10 . 50 . . 180 30 210 62 . . 638 305 126 Destroy 0b10 Robot/C 180 | . . 40 . . 80 20 . . . . . 40 . Destroy 0b10 Robot/NC 10 | 10 . . . . . . . . . . . . . Destroy Leader 50 | . . 10 . . 20 10 . . . . . 10 . Successful Hack 77 | . . . . . 12 . 14 . . . . . 51 Destroy Structure 19 | . . . . . 8 . 1 2 . . 8 . . Partial Spotted 90 | . . . . . 15 . 15 . . . 45 15 . Lose Combat Pursuer 1185 | . . . . . 45 . 180 60 . . 585 240 75 Influence Decreases 1373 | 10 . 50 . . 163 37 105 175 2 . 290 333 208 Entered New Map 358 | . . . . . . 10 6 59 2 . . 153 128 Time Decay 694 | 10 . 50 . . 143 27 78 106 . . 110 100 70 Lost Part 161 | . . . . . 20 . 21 10 . . 30 80 . Lost Ally 10 | . . . . . . . . . . . . . 10 Purge Threat 150 | . . . . . . . . . . . 150 . . Squads Dispatched 15 | . 1 . . . 1 1 1 . . . 4 4 3 Investigation 3 | . . . . . 1 1 . . . . . 1 . Extermination 5 | . . . . . . . 1 . . . 2 1 1 Reinforcement 7 | . 1 . . . . . . . . . 2 2 2 Assault . | . . . . . . . . . . . . . . Garrison . | . . . . . . . . . . . . . . Intercept . | . . . . . . . . . . . . . . Searches Triggered . | . . . . . . . . . . . . . . Construction Impeded . | . . . . . . . . . . . . . . Haulers Reinforced . | . . . . . . . . . . . . . . Active Scanning Responses . | . . . . . . . . . . . . . . Cargo Convoy Interrupts . | . . . . . . . . . . . . . . Stealth | -11 -10 -10 -10 -9 -8 -7 -6 -5 -4 -4 -3 -2 -1 --------- Run | Yrd Mat Min Exi Min Mat Fac Fac Fac Fac DSF Res Res Acc Distress Signals 6 | . 1 . . . 1 . 1 . . . 1 1 1 Communications Jammed . | . . . . . . . . . . . . . . Distress Signals . | . . . . . . . . . . . . . . Times Spotted 146 | . 2 2 . 10 14 1 19 11 . 2 46 24 15 Peak Tracking Total 17 | . 5 2 . 17 9 1 8 7 . 2 17 17 9 Tactical Retreats 28 | . . . . 3 1 . 5 3 . . 9 4 3 Traps | -11 -10 -10 -10 -9 -8 -7 -6 -5 -4 -4 -3 -2 -1 ------- Run | Yrd Mat Min Exi Min Mat Fac Fac Fac Fac DSF Res Res Acc Traps Triggered 7 | . . . . . . 1 2 1 . 1 . 2 . Indirectly . | . . . . . . . . . . . . . . Trap Hack Attempts . | . . . . . . . . . . . . . . Triggered . | . . . . . . . . . . . . . . Disarmed . | . . . . . . . . . . . . . . Reprogrammed . | . . . . . . . . . . . . . . Reused . | . . . . . . . . . . . . . . Traps Extracted . | . . . . . . . . . . . . . . Installed . | . . . . . . . . . . . . . . Triggered . | . . . . . . . . . . . . . . Machines | -11 -10 -10 -10 -9 -8 -7 -6 -5 -4 -4 -3 -2 -1 ---------- Run | Yrd Mat Min Exi Min Mat Fac Fac Fac Fac DSF Res Res Acc Machines Disabled . | . . . . . . . . . . . . . . Max in Single Turn . | . . . . . . . . . . . . . . Machines Repaired . | . . . . . . . . . . . . . . Machines Dismantled . | . . . . . . . . . . . . . . Machines Sabotaged . | . . . . . . . . . . . . . . Overloaded Fab Kills . | . . . . . . . . . . . . . . Hacking | -11 -10 -10 -10 -9 -8 -7 -6 -5 -4 -4 -3 -2 -1 --------- Run | Yrd Mat Min Exi Min Mat Fac Fac Fac Fac DSF Res Res Acc Machines Accessed 13 | . . . 2 . 2 . 1 . 1 . 3 1 3 Terminals 11 | . . . . . 2 . 1 . 1 . 3 1 3 Fabricators . | . . . . . . . . . . . . . . Repair Stations . | . . . . . . . . . . . . . . Recycling Units . | . . . . . . . . . . . . . . Scanalyzers . | . . . . . . . . . . . . . . Garrison Access . | . . . . . . . . . . . . . . Total Hacks 27 | . . . 10 . 4 . 1 . 1 . 6 2 3 Successful 17 | . . . 10 . 2 . 1 . 1 . 1 . 2 Failed 10 | . . . . . 2 . . . . . 5 2 1 Catastrophic 1 | . . . . . . . . . . . . . 1 Database Lockouts . | . . . . . . . . . . . . . . Manual 6 | . . . 1 . 4 . . . . . . 1 . Terminals 17 | . . . . . 4 . 1 . 1 . 6 2 3 Fabricators . | . . . . . . . . . . . . . . Repair Stations . | . . . . . . . . . . . . . . Recycling Units . | . . . . . . . . . . . . . . Scanalyzers . | . . . . . . . . . . . . . . Garrison Access . | . . . . . . . . . . . . . . Terminal Hacks 17 | . . . 10 . 2 . 1 . 1 . 1 . 2 Record 9 | . . . 9 . . . . . . . . . . Part Schematic 1 | . . . . . . . 1 . . . . . . Robot Analysis 1 | . . . . . 1 . . . . . . . . Open Door 1 | . . . . . . . . . . . . . 1 Open DSF 1 | . . . . . . . . . 1 . . . . Level Access Points 1 | . . . . . 1 . . . . . . . . Unreport Threat 1 | . . . . . . . . . . . 1 . . Zone Layout 1 | . . . . . . . . . . . . . 1 Proto ID Catalog 1 | . . . 1 . . . . . . . . . . Fabricator Hacks . | . . . . . . . . . . . . . . Repair Station Hacks . | . . . . . . . . . . . . . . Recycling Unit Hacks . | . . . . . . . . . . . . . . Scanalyzer . | . . . . . . . . . . . . . . Garrison Access Hacks . | . . . . . . . . . . . . . . Unauthorized Hacks . | . . . . . . . . . . . . . . Terminals . | . . . . . . . . . . . . . . Fabricators . | . . . . . . . . . . . . . . Repair Stations . | . . . . . . . . . . . . . . Recycling Units . | . . . . . . . . . . . . . . Scanalyzers . | . . . . . . . . . . . . . . Garrison Access . | . . . . . . . . . . . . . . Data Cores Recovered . | . . . . . . . . . . . . . . Used . | . . . . . . . . . . . . . . Hacking Detections 6 | . . . . . 2 . . . . . 1 1 2 Full Trace Events 2 | . . . . . 1 . . . . . . 1 . Feedback Events . | . . . . . . . . . . . . . . Feedback Blocked . | . . . . . . . . . . . . . . Robot Schematics Acquired . | . . . . . . . . . . . . . . Robots Built . | . . . . . . . . . . . . . . Authchips . | . . . . . . . . . . . . . . Time . | . . . . . . . . . . . . . . Total Robot Build Rating . | . . . . . . . . . . . . . . Part Schematics Acquired 1 | . . . . . . . 1 . . . . . . Parts Built . | . . . . . . . . . . . . . . Authchips . | . . . . . . . . . . . . . . Time . | . . . . . . . . . . . . . . Total Part Build Rating . | . . . . . . . . . . . . . . Parts Repaired . | . . . . . . . . . . . . . . Time . | . . . . . . . . . . . . . . Parts Recycled . | . . . . . . . . . . . . . . Recycled Matter . | . . . . . . . . . . . . . . Retrieved Matter . | . . . . . . . . . . . . . . Retrieved Components . | . . . . . . . . . . . . . . Parts Scanalyzed . | . . . . . . . . . . . . . . Part Schematics Acquired . | . . . . . . . . . . . . . . Parts Damaged . | . . . . . . . . . . . . . . Bothacking | -11 -10 -10 -10 -9 -8 -7 -6 -5 -4 -4 -3 -2 -1 ------------ Run | Yrd Mat Min Exi Min Mat Fac Fac Fac Fac DSF Res Res Acc Used RIF Installer . | . . . . . . . . . . . . . . Robots Hacked . | . . . . . . . . . . . . . . Non-combat . | . . . . . . . . . . . . . . Combat . | . . . . . . . . . . . . . . Robot Hacks Applied . | . . . . . . . . . . . . . . Relay Couplers Released . | . . . . . . . . . . . . . . Fabnet Peak Effective % . | . . . . . . . . . . . . . . Robots Rewired . | . . . . . . . . . . . . . . Allies Hacked . | . . . . . . . . . . . . . . Hacks Repelled . | . . . . . . . . . . . . . . Allies | -11 -10 -10 -10 -9 -8 -7 -6 -5 -4 -4 -3 -2 -1 -------- Run | Yrd Mat Min Exi Min Mat Fac Fac Fac Fac DSF Res Res Acc Total Allies 3 | . . 3 . . . . . . . . . . . Largest Group 3 | . . 3 2 2 . . . . . . . . . Highest-Rated Group 40 | . . 40 24 24 . . . . . . . . . Highest-Rated Ally 16 | . . 16 16 16 . . . . . . . . . Total Orders 5 | . . . . . . . . . . . . . 5 EXPLORE 5 | . . . . . . . . . . . . . 5 Ally Attacks 9 | . . . . 9 . . . . . . . . . Total Damage 90 | . . . . 90 . . . . . . . . . Kills 1 | . . . . 1 . . . . . . . . . Allies Corrupted . | . . . . . . . . . . . . . . Allies Melted . | . . . . . . . . . . . . . . Intel | -11 -10 -10 -10 -9 -8 -7 -6 -5 -4 -4 -3 -2 -1 ------- Run | Yrd Mat Min Exi Min Mat Fac Fac Fac Fac DSF Res Res Acc Active Infowar (turns) 23 | . . . 23 . . . . . . . . . . Cloaking 23 | . . . 23 . . . . . . . . . . Robot Analysis Total 1 | . . . . . 1 . . . . . . . . Derelict Logs Recovered 1 | . . 1 . . . . . . . . . . . Drone Launches 5 | . . . . . . . . . . . . . 5 Drone Recoveries 3 | . . . . . . . . . . . . . 3 Exploration | -11 -10 -10 -10 -9 -8 -7 -6 -5 -4 -4 -3 -2 -1 ------------- Run | Yrd Mat Min Exi Min Mat Fac Fac Fac Fac DSF Res Res Acc Turns Passed 3475 | 45 52 429 716 177 421 209 285 347 4 55 367 219 149 Spaces Moved 4164 | 14 46 374 643 146 355 180 315 335 3 71 850 466 366 Core 32 | . . . . . . . 10 . . 22 . . . Treads 44 | . . . . . 23 7 14 . . . . . . Legs 35 | 14 21 . . . . . . . . . . . . Wheels 1823 | . 25 374 643 146 332 173 130 . . . . . . Hover 514 | . . . . . . . 161 335 3 15 . . . Flight 1716 | . . . . . . . . . . 34 850 466 366 Fastest Speed 31 | 120 95 95 110 110 80 95 50 56 56 36 36 31 37 Average Speed 74 | 120 106 101 110 110 94 102 83 99 56 60 39 37 39 Slowest Speed 250 | 120 120 110 110 115 240 250 250 110 56 125 125 125 42 Overloaded Moves . | . . . . . . . . . . . . . . Propulsion Burnouts . | . . . . . . . . . . . . . . Robots Hopped 19 | . . . . . . . . . . . 10 5 4 Potential Cave-ins 2 | . . . . . 2 . . . . . . . . Cave-ins Triggered . | . . . . . . . . . . . . . . Exploration Rate (%) 35 | 2 13 90 82 43 30 8 14 12 . 87 33 21 21 Regions Visited 13 Branch Regions 3 Pre-discovered Areas . | . . . . . . . . . . . . . . Known Exits Taken 3 | . . . . . 1 . . 1 1 . . . . Unknown Exits Taken 9 | 1 1 1 1 1 . 1 1 . . . 1 1 . Scrap Searched 2 | . . 2 . . . . . . . . . . . Spaces Dug 31 | . . . . . 27 . . . . . 4 . . Terrain Destroyed 33 | . . . . . 27 . 1 1 . . 4 . . Melee . | . . . . . . . . . . . . . . Projectile 6 | . . . . . . . 1 1 . . 4 . . AOE 27 | . . . . . 27 . . . . . . . . Terrain Rammed . | . . . . . . . . . . . . . . Walls Destroyed . | . . . . . . . . . . . . . . Machines Disabled . | . . . . . . . . . . . . . . Actions | -11 -10 -10 -10 -9 -8 -7 -6 -5 -4 -4 -3 -2 -1 --------- Run | Yrd Mat Min Exi Min Mat Fac Fac Fac Fac DSF Res Res Acc Total 4387 | 24 47 401 651 154 415 198 332 345 4 81 870 499 366 Wait 35 | . . 7 6 3 8 1 . 1 . . 8 . 1 Move 4112 | 13 45 373 642 145 354 179 314 334 2 70 829 455 357 Hop 19 | . . . . . . . . . . . 10 5 4 Pick Up 49 | 2 . 4 1 . 11 4 6 4 . 1 7 8 1 Fast Attach 25 | . . 1 . . 3 . 4 2 . 5 5 4 1 Attach 25 | . . . . . 4 2 4 3 2 2 2 5 1 Detach 5 | . . . . . . . . . . 3 . 1 1 Swap 15 | . 2 1 1 1 8 2 . . . . . . . Drop 27 | . . 3 1 1 12 3 2 . . . 5 . . Fire 53 | 9 . 12 . 4 15 7 1 1 . . 4 . . Melee 3 | . . . . . . . . . . . . 3 . Ram . | . . . . . . . . . . . . . . Kick . | . . . . . . . . . . . . . . Crush 1 | . . . . . . . 1 . . . . . . Escape Stasis 18 | . . . . . . . . . . . . 18 . Rewire . | . . . . . . . . . . . . . . Trap . | . . . . . . . . . . . . . . Miscellaneous . | . . . . . . . . . . . . . . Route ------- -11/Scrapyard -10/Materials -10/Mines (discovered 2 exits: [*Mat] / *Exi) -10/Exiles -9/Mines -8/Materials (discovered 3 exits: *Fac x3) -7/Factory -6/Factory -5/Factory -4/Factory -4/DSF -3/Research -2/Research -1/Access To Epsilon Eridani History --------- Turn | Location | Event 1 | -11/Scrapyard | Discovered new exit (range 3) 46 | -11/Scrapyard | Entered Materials 68 | -10/Materials | Discovered new exit (range 6) 98 | -10/Materials | Entered Mines 146 | -10/Mines | Found a Scrap Suit stashed away for nefarious purposes 149 | -10/Mines | Found Scrap Suit 267 | -10/Mines | Discovered new exit (range 3) 285 | -10/Mines | Assisted by bots powering up and referring to "LRC-V3" 302 | -10/Mines | Build established: Mutant 519 | -10/Mines | Learned Materials security intel 523 | -10/Mines | Deemed a non-threat by the Exiles lab entrance 523 | -10/Mines | Discovered new exit (range 5) 527 | -10/Mines | Entered Exiles 527 | -10/Exiles | Accompanied by 2 allies 553 | -10/Exiles | Met 8R-AWN 574 | -10/Exiles | Met EX-HEX 606 | -10/Exiles | Met EX-BIN 780 | -10/Exiles | Met EX-DEC 904 | -10/Exiles | Visited The Gauntlet 1055 | -10/Exiles | Aligned with FarCom system 1057 | -10/Exiles | Given EX-Vault access code 1082 | -10/Exiles | Opened EX-Vault 1089 | -10/Exiles | Found Cloak of Protection 1115 | -10/Exiles | Warned to stay clear of 0b10 Research branches 1222 | -10/Exiles | Discovered new exit (range 14) 1243 | -10/Exiles | Left Exiles lab with Cloak of Protection 1243 | -10/Exiles | Entered Mines 1243 | -9/Mines | Accompanied by 2 allies 1244 | -9/Mines | Assembled infested the area 1249 | -9/Mines | Assisted by a Guerilla fighting off Assembled 1302 | -9/Mines | Lost 3 allies 1414 | -9/Mines | Discovered new exit (range 6) 1420 | -9/Mines | Entered Materials 1420 | -8/Materials | Evolved 4 slots: Power x1, Propulsion x2, Utility x1 1527 | -8/Materials | Identified exit to Factory 1839 | -8/Materials | Build established: Hacker-Mutant 1841 | -8/Materials | Entered Factory 1841 | -7/Factory | Evolved 2 slots: Utility x2 2047 | -7/Factory | Discovered new exit (range 4) 2050 | -7/Factory | Entered another Factory area 2050 | -6/Factory | Evolved 2 slots: Propulsion x2 2229 | -6/Factory | Released all parts (3) 2260 | -6/Factory | Lost 13 parts (4p6n1u2w) 2332 | -6/Factory | Discovered new exit (range 7) 2335 | -6/Factory | Entered another Factory area 2335 | -5/Factory | Evolved 2 slots: Propulsion x1, Utility x1 2472 | -5/Factory | Build established: Mutant 2676 | -5/Factory | Discovered new exit (range 11) 2681 | -5/Factory | Identified exit to Factory 2682 | -5/Factory | Entered another Factory area 2682 | -4/Factory | Evolved 2 slots: Propulsion x1, Utility x1 2684 | -4/Factory | Identified exit to DSF 2686 | -4/Factory | Entered DSF 2701 | -4/DSF | Released all parts (6) 2720 | -4/DSF | Additional patrols routed to DSF 2729 | -4/DSF | Lost 3 parts (2n1u) 2730 | -4/DSF | Discovered new exit (range 16) 2741 | -4/DSF | Entered Research 2741 | -3/Research | Evolved 2 slots: Utility x2 2966 | -3/Research | Lost 3 parts (1p1n1u) 3103 | -3/Research | Discovered new exit (range 15) 3108 | -3/Research | Entered another Research area 3108 | -2/Research | Evolved 2 slots: Propulsion x2 3242 | -2/Research | Spotted B-90 Cyclops 3294 | -2/Research | Lost 5 parts (2p2n1u) 3324 | -2/Research | Discovered new exit (range 6) 3327 | -2/Research | Entered Access 3327 | -1/Access | Evolved 2 slots: Power x1, Utility x1 3336 | -1/Access | Lost 3 parts (3n) 3474 | -1/Access | Discovered new exit (range 6) 3476 | *** | Escaped! Last Messages --------------- 03414_ Advanced Drone destroyed. 03418_ O-32 Director: "IFF HANDSHAKE FAILED. SECURING TERMINAL." 03428_ ALERT: Suspicious intruders detected, dispatching Cutter reinforcements to area. 03429_ ALERT: Potential suspicious activity detected, Programmers report to Access Zone 4S. 03434_ ALERT: Hostiles spotted, dispatching reinforcements to Terminal A022. 03443_ Connecting with Terminal... >>Layout(Zone) Retrieving Zone 1Z layout... Downloaded map data. 03452_ Knocked back. 03464_ ALERT: Security rotation in progress. 03473_ Connecting with Terminal... >>Open(Door) Sealed Barrier opened. 03473_ S-43 Plague destroyed. 03474_ The Access Shell folds into the floor. 03474_ EXIT=FOUND Map ----- +----------------------------------------------------+ | ?????????????????????????????????????????????????? | | ?????????????????????????????????????????????????? | | ??????????????????????????????????????????##+##### | | ??????????????????????????????????????? | | ??????????????????????????????????????? | | ??????????????????????????????????????? | | ??????????????????????????????????????? | | ???????????????????????????????????????? #### | | ???????????????????????????????????????????? ????? | | ?????????????????????????????????????????????????? | | ?????????????????????????????????????????????????? | | ?????????????????????????????????????????????????? | | ?????????????????????????????????????????????????? | | ?????????????????????????????????????????????????? | | ?????????????????????BB????BB????????????????????? | | ?????????????????????BB????BB????????????????????? | | ?????????????????????????????????????????????????? | | ???????????????????????????????????????????? ???? | | ???????????????????????????????????????????? ???? | | ???????????????????????????????????????????? ???? | | ???????????????????#""""""""""#????????????? ???? | | ???????????????????# #?###????##### #??? | | ???????????????????# #?# ??? # #??? | | ???????????????????# #?# ??? # #### | | ???????????????????# "" #?# ???" # | | ???????????????????# "@ #?# """" # | | ???????????????????# #?# """" # | | ???????????????????# #?# """" # | | ???????????????????# #?# """" # | | ??????????????????## ### "" # | | ??????????????????# ## ! # | | ??????????????????##"" ### # | | ???????????????????#"" #?# # ?? | | ???????????????????#"" #?# # #??? | | ???????????????????#T #?# / #??? | | ???????????????????#"" #?# # #??? | | ???????????????????#"" #?# # #??? | | ???????????????????#"" ########k##### #### | | ??????????? n w s%s | | ??????????? s[ s | | ??????????????#####################+######## #### | | ???????????????????????????????????????????# #??? | | ???????????????????????????????????????????# #??? | | ???????????????????????????????????????????# #??? | | ???????????????????????????????????????????# #??? | | ???????????????????????????????????????????# #??? | | ???????????????????????????????????????????# #??? | | ??????????????????????????????????????????? ??? | | ??????????????????????????????????????????? ??? | | ??????????????????????????????????????????? ??? | +----------------------------------------------------+ Best States ------------- Heat Dissipation 70 Energy Generation 41 Energy Capacity 400 Matter Stores 300 Matter Capacity 300 Sight Range 16 Terrain Scan Density 210 Cloak Strength 5 Armor Coverage 600 Evasion (%) 63 Targeting Accuracy 8 Recoil Reduction 1 Offensive Hacking 20 Trap Extractor Capacity 8 Item Schematics ----------------- Imp. Cloaking Device | -6/Factory | Hacked Robot Schematics ------------------ None Fabricated ------------ Nothing Repaired ---------- Nothing Alien Tech Used ----------------- None Achievements -------------- None Challenges ------------ None Game ------ Seed CargoMomentumBlaster Manual? 0 Play Time 01:43:21 Cumulative 157.6 hours Start 2025.05.06 @ 21:56:55 End 2025.05.07 @ 00:01:43 Sessions 1 Manual Loads 0 Difficulty Rogue Special Mode None Game No. 81 Rogue 81 Adventurer 0 Explorer 0 Win Type 0 Total 3 Types 3/0/0/0/0/0/0/0/0/0 Lore% 28 Gallery% 47 Achievement% 41 Wizard Run 0 Options --------- Layout 0 ASCII 0 Keyboard 0 Movement Numpad Keybinds 0 Fullscreen 1 Font 18/SmallcapsGlow Map View 76x50 Zoom Use 0% Tactical HUD 1 Map Filters NONE Filters NONE Steam 1 RUN: 585edd3e-473b-4e61-a4c8-5a9b37435a39